Cogmind - Beta 15 @@@ ROGUE MODE // 2025.07.12 @ 22:25:51 Player: jumpy Result: Destroyed by Y-64 Sentinel with Wave Gun Performance ------------- Evolutions (5) 2500 Regions Visited (8) 1600 Robots Destroyed (49) 245 Value Destroyed (2156) 2156 Prototype IDs (9) 180 Alien Tech Used (0) 0 Bonus (385) 385 TOTAL SCORE: 7066 Bonus ------- High Alert Combat Kills 185 Entered Garrisons 200 Cogmind --------- Core Integrity 0/1000 Matter 73/300 Energy 93/100 System Corruption 2% Temperature Cool (9) Movement Core (400) Ox7 Location -5/Garrison Parts ------- > --- POWER (2) -------- (None) > --- PROPULSION (6) --- (None) > --- UTILITY (7) ------ Large Storage Unit Advanced Signal Interpreter Advanced Targeting Computer Melee Analysis Suite > --- WEAPON (2) ------- Gauss Rifle > --- INVENTORY (15) --- F-cell Engine Neutrino Core Antigrav System Antigrav System Relay Coupler [NC] (26) Improved Trap Extractor (0/6) Drone Bay (2/2) Peak State ------------ > --- POWER ------------ F-cell Engine Neutrino Core > --- PROPULSION ------- Gravmag Array Gravmag Array Gravmag Array > --- UTILITY ---------- Large Storage Unit Advanced Signal Interpreter Advanced Terrain Scanner Advanced Targeting Computer Melee Analysis Suite Reaction Control System Improved Medium Armor Plating > --- WEAPON ----------- Advanced Plasma Cannon Power Sword > --- INVENTORY -------- Micro Nuclear Core Micro Nuclear Core Neutrino Core Armored Huge Wheel Improved Hover Unit Antigrav System Improved Trap Extractor Drone Bay Advanced Plasma Cannon Improved Grenade Launcher [Rating: 81] Favorites ----------- Power Micro Nuclear Core Engine Ion Engine Power Core Micro Nuclear Core Propulsion Gravmag Array Treads Light Treads Wheel Armored Huge Wheel Hover Unit Gravmag Array Flight Unit Flight Unit Utility Melee Analysis Suite Device Seismic Detector Storage Small Storage Unit Processor Melee Analysis Suite Protection Improved Medium Armor Plating Weapon Power Sword Energy Gun Small Laser Energy Cannon Advanced Plasma Cannon Ballistic Gun Gauss Rifle Ballistic Cannon Light Cannon Launcher Improved Grenade Launcher Slashing Weapon Power Sword Build | -11 -10 -9 -9 -8 -7 -6 -5 -5 ------- Run | Yrd Mat Mat Min Mat Fac Fac Fac Gar Slots Evolved 10 | . . 2 . 2 2 2 2 . Power 1 | . . . . . . . 1 . Propulsion 4 | . . 1 . 1 1 1 . . Utility 5 | . . 1 . 1 1 1 1 . Weapon . | . . . . . . . . . Parts Attached 63 | 8 . 8 3 . 2 12 16 14 Power 11 | 1 . 1 1 . 1 2 2 3 Engine 6 | 1 . 1 1 . 1 . 2 . Core 5 | . . . . . . 2 . 3 Reactor . | . . . . . . . . . Propulsion 20 | 2 . 1 2 . 1 5 4 5 Treads 2 | 2 . . . . . . . . Leg . | . . . . . . . . . Wheel 1 | . . . . . . . . 1 Hover 10 | . . . . . . 2 4 4 Flight 7 | . . 1 2 . 1 3 . . Utility 17 | 2 . 2 . . . 4 7 2 Device 8 | 1 . 2 . . . 3 2 . Storage 2 | 1 . . . . . . 1 . Processor 3 | . . . . . . 1 2 . Hackware . | . . . . . . . . . Protection 4 | . . . . . . . 2 2 Artifact . | . . . . . . . . . Weapon 15 | 3 . 4 . . . 1 3 4 Energy Gun 2 | 2 . . . . . . . . Energy Cannon 4 | . . . . . . . 3 1 Ballistic Gun 4 | 1 . 1 . . . . . 2 Ballistic Cannon 2 | . . 2 . . . . . . Launcher 1 | . . . . . . . . 1 Special Weapon . | . . . . . . . . . Impact Weapon . | . . . . . . . . . Slashing Weapon 2 | . . 1 . . . 1 . . Piercing Weapon . | . . . . . . . . . Special Melee Weapon . | . . . . . . . . . Unidentified Prototypes 7 | . . 1 . . 1 3 2 . Corrupted Parts 1 | . . . . . 1 . . . System Corruption 4 | . . . . . 4 . . . Parts Lost 32 | . . 1 5 . 3 4 . 19 Power 6 | . . . 1 . . 1 . 4 Propulsion 12 | . . . 2 . 2 2 . 6 Utility 7 | . . 1 . . 1 1 . 4 Weapon 7 | . . . 2 . . . . 5 Highest Loss Streak 13 | . . 1 3 . 3 3 . 13 To Critical Strikes . | . . . . . . . . . Average Backups 6 | 2 6 7 7 7 8 6 4 8 Power 1 | . 1 1 . 1 1 1 1 2 Propulsion 1 | 1 2 2 3 2 2 1 . 2 Utility 2 | . 2 1 1 3 4 3 1 2 Weapon 1 | . 1 1 1 1 . . 1 1 Tool/Special . | . . . . . . . . . Unused Backups 15 | . 1 4 1 2 . 3 . 4 Power 4 | . . 2 . . . 1 . 1 Propulsion 4 | . . 2 . 2 . . . . Utility 4 | . . . . . . 1 . 3 Weapon 2 | . 1 . 1 . . . . . Tool/Special 1 | . . . . . . 1 . . Average Slot Usage (%) 61 | . 100 81 67 63 52 26 64 60 Engine 5 | . 14 11 4 9 7 3 3 . Core 2 | . . . . . . . 4 5 Treads 5 | . 28 22 5 . . . . . Hover 5 | . . . . . . . 15 8 Flight 4 | . . . 12 27 23 8 . . Device 8 | . 14 14 22 18 13 4 5 3 Storage 6 | . 14 11 11 9 7 3 1 5 Processor 7 | . . . . . . 2 14 17 Protection 1 | . . . . . . . 4 4 Energy Gun 1 | . 14 2 . . . . . . Energy Cannon 1 | . . . . . . . 4 1 Ballistic Gun 3 | . 14 7 1 . . . . 3 Ballistic Cannon 1 | . . 7 11 . . . . . Slashing Weapon 2 | . . 4 . . . 2 4 2 Peak Build Rating 81 | 7 7 11 11 11 17 27 78 81 Average Rating 31 | 5 7 7 7 11 12 14 66 52 On Entrance 16 | . 7 7 9 11 11 13 13 78 Naked Turns . | . . . . . . . . . Heaviest Build 61 | 12 12 18 13 12 17 17 59 61 Greatest Support 60 | 40 40 40 20 13 19 12 60 60 Greatest Overweight (x) 10 | . . . 4 . 3 5 . 10 Average Overweight (x) . | . . . . . . . . . Largest Inventory Capacity 15 | 8 8 8 8 8 8 8 15 15 Average Capacity 9 | 7 8 8 8 8 8 6 6 15 Most Carried 12 | 7 7 8 8 8 8 8 9 12 Average Carried 6 | 3 6 7 7 7 8 6 5 9 Final Capacity 15 | 8 8 8 8 8 8 5 15 15 Final Carried 9 | 6 6 8 8 8 8 5 9 7 Class Distribution -------------------- 91% | Mutant 8% | Scavenger-Mutant Dominant Class ---------------- Mutant | -10/Materials Mutant | -9/Materials Mutant | -9/Mines Mutant | -8/Materials Mutant | -7/Factory Mutant | -6/Factory Mutant | -5/Factory Mutant | -5/Garrison Resources | -11 -10 -9 -9 -8 -7 -6 -5 -5 ----------- Run | Yrd Mat Mat Min Mat Fac Fac Fac Gar Matter Collected 1325 | 316 . 77 44 . . 312 283 293 Remotely . | . . . . . . . . . Salvage Created 1646 | 144 . 143 85 . . . 542 732 Parts 94 | 13 . 11 6 . . . 18 46 Haulers Intercepted . | . . . . . . . . . Recyclers Shooed 1 | 1 . . . . . . . . Parts Field Recycled . | . . . . . . . . . Retrieved Matter . | . . . . . . . . . Parts Self-Destructed . | . . . . . . . . . Prevented . | . . . . . . . . . Kills | -11 -10 -9 -9 -8 -7 -6 -5 -5 ------- Run | Yrd Mat Mat Min Mat Fac Fac Fac Gar Combat Hostiles Destroyed 38 | . . 7 4 . . . 2 25 Melee 7 | . . . . . . . 2 5 Guns 5 | . . 3 1 . . . . 1 Cannons 8 | . . 4 3 . . . . 1 AOE 18 | . . . . . . . . 18 Classes Destroyed 9 | 3 . 2 1 . . . 1 2 Worker 2 | 1 . . . . . . 1 . Tunneler 4 | 3 . . . . . . 1 . Recycler 3 | 1 . . . . . . 2 . Watcher 2 | . . . . . . . 2 . Swarmer 20 | . . 5 2 . . . . 13 Grunt 7 | . . . 2 . . . . 5 Sentry 6 | . . 2 . . . . 2 2 Hunter 2 | . . . . . . . . 2 Programmer 3 | . . . . . . . . 3 Best Kill Streak 9 | 3 . 3 2 . . . 3 9 Combat Bots Only 9 | . . 3 2 . . . 1 9 Max Kills in Single Turn 3 | 1 . 1 1 . . . 1 3 Gunslinging . | . . . . . . . . . Exploded 3 | . . . . . . . . 3 Melee 1 | . . . . . . . 1 1 Uniques/NPCs Destroyed . | . . . . . . . . . Combat | -11 -10 -9 -9 -8 -7 -6 -5 -5 -------- Run | Yrd Mat Mat Min Mat Fac Fac Fac Gar Hostile Shots Fired 403 | . . 70 38 . 14 60 19 202 Missed 105 | . . 18 11 . 3 23 4 46 Hits 298 | . . 52 27 . 11 37 15 156 Projectile 298 | . . 52 27 . 11 37 15 156 Critical Strikes 11 | . . . . . 1 1 . 9 Damage Taken 5406 | . . 490 285 . 235 724 360 3312 Core 1704 | . . 41 60 . 119 480 141 863 Absorbed by Shields . | . . . . . . . . . Core Remaining (%) 83 | 100 100 . 74 100 83 43 . . Volleys Fired 142 | 12 . 55 15 . . . 9 51 Largest 2 | 2 . 2 2 . . . 1 1 Hottest 98 | 60 . 60 60 . . . 98 98 Shots Fired 182 | 24 . 72 26 . . . 9 51 Gun 87 | 24 . 46 4 . . . . 13 Cannon 71 | . . 26 22 . . . 9 14 Launcher 24 | . . . . . . . . 24 Special . | . . . . . . . . . Kinetic 119 | 12 . 68 26 . . . . 13 Thermal 32 | 12 . 4 . . . . 2 14 Explosive 24 | . . . . . . . . 24 Electromagnetic 7 | . . . . . . . 7 . Robot Hit Streak 10 | 4 . 8 5 . . . 4 10 Robot Miss Streak 7 | 1 . 5 7 . . . 2 2 Penetration Max . | . . . . . . . . . Secondary Targets . | . . . . . . . . . Shots Hit Robots 140 | 14 . 42 12 . . 5 19 48 Core Hits 78 | 6 . 10 6 . 1 1 10 44 Critical Kills . | . . . . . . . . . Critical Parts Destroyed 2 | . . 2 . . . . . . Critical Strikes 7 | . . 2 . . . 1 2 2 Destroy 2 | . . 2 . . . . . . Sever 5 | . . . . . . 1 2 2 Melee Attacks 45 | . . . . . . 7 14 24 Impact . | . . . . . . . . . Slashing 45 | . . . . . . 7 14 24 Piercing . | . . . . . . . . . Sneak Attacks 4 | . . . . . . . 4 . Combat Hostiles . | . . . . . . . . . Follow-up Attacks . | . . . . . . . . . Damage Inflicted 5067 | 165 . 679 198 . 7 233 814 2971 Guns 811 | 165 . 461 25 . . . . 160 Cannons 736 | . . 218 169 . . . 111 238 Explosions 1948 | . . . . . . . . 1948 Melee 1547 | . . . . . . 220 703 624 Ramming 25 | . . . 4 . 7 13 . 1 Kinetic 1074 | 87 . 633 194 . . . . 160 Thermal 397 | 78 . 46 . . . . 35 238 Explosive 1948 | . . . . . . . . 1948 Electromagnetic 76 | . . . . . . . 76 . Impact . | . . . . . . . . . Slashing 1547 | . . . . . . 220 703 624 Piercing . | . . . . . . . . . Highest Corruption 4 | . . . . . 4 2 . 2 Average Corruption 1 | . . . . . 4 1 . 1 Corruption Purged 1 | . . . . . . 1 . . Corruption Blocked . | . . . . . . . . . Effects 13 | . . . . . . 5 . 8 Message Errors 4 | . . . . . . 2 . 2 Matter Fused 3 | . . . . . . 1 . 2 Heat Flow Errors 2 | . . . . . . 1 . 1 Energy Discharges 1 | . . . . . . . . 1 Data Loss (minor) 2 | . . . . . . 1 . 1 Data Loss (major) 1 | . . . . . . . . 1 Overload Shots . | . . . . . . . . . Overflow Damage 159 | . . . . . . . 67 92 Projectiles . | . . . . . . . . . Explosions 92 | . . . . . . . . 92 Melee 67 | . . . . . . . 67 . Knockbacks 4 | . . 4 . . . . . . Impact . | . . . . . . . . . Kinetic 4 | . . 4 . . . . . . Secondary . | . . . . . . . . . Self-Inflicted Damage 488 | . . . 1 . 3 6 . 478 Shots 11 | . . . . . . . . 11 Rammed 10 | . . . 5 . 2 2 . 1 Targets Rammed 10 | . . . 5 . 2 2 . 1 Kicked . | . . . . . . . . . Crushed . | . . . . . . . . . Highest Temperature 320 | . . 6 10 . . 101 204 320 Average Temperature 67 | . . 4 5 . . 53 61 78 Received Heat Transfer 660 | . . 36 75 . . 63 81 405 Siege Activations . | . . . . . . . . . Martial Activations . | . . . . . . . . . Shielding Activations . | . . . . . . . . . Robots Disrupted . | . . . . . . . . . Combat Hostiles . | . . . . . . . . . Robots Corrupted . | . . . . . . . . . Combat Hostiles . | . . . . . . . . . Parts Fried . | . . . . . . . . . Impact Corruptions . | . . . . . . . . . Robots Melted . | . . . . . . . . . Combat Hostiles . | . . . . . . . . . Parts Melted 1 | . . . . . . . . 1 Heat Transferred 649 | 175 . 100 . . . . 50 324 Parts Sabotaged . | . . . . . . . . . Parts Stolen . | . . . . . . . . . Parts Stripped . | . . . . . . . . . Power Chain Reactions . | . . . . . . . . . Alert | -11 -10 -9 -9 -8 -7 -6 -5 -5 ------- Run | Yrd Mat Mat Min Mat Fac Fac Fac Gar Maximum Alert Level 3 | . . . . . . . . 3 Low Security (%) 81 | 100 100 100 100 100 100 100 100 28 Level 1 . | . . . . . . . . 2 Level 2 16 | . . . . . . . . 65 Level 3 . | . . . . . . . . 3 Level 4 . | . . . . . . . . . Level 5 . | . . . . . . . . . High Security . | . . . . . . . . . Max Security . | . . . . . . . . . Peak Influence 723 | 5 6 75 50 25 2 70 30 723 Initial 19 | . . . 19 . 2 . 12 2 Average 105 | . . 17 13 11 . 26 5 376 Influence Increases 1568 | 25 12 189 100 45 . 211 103 883 Destroy 0b10 Robot/C 760 | . . 140 80 . . . 40 500 Destroy 0b10 Robot/NC 55 | 25 . . . . . . 30 . Destroy Leader 104 | . . 30 20 . . . 24 30 Successful Hack 38 | . 12 3 . . . . 9 14 Disable Machine 15 | . . 15 . . . . . . Anti-Garrison Action 150 | . . . . . . . . 150 Destroy Structure 176 | . . 1 . . . 1 . 174 Partial Spotted 60 | . . . . 45 . . . 15 Lose Combat Pursuer 210 | . . . . . . 210 . . Influence Decreases 873 | 25 12 137 152 40 5 184 126 192 Entered New Map 53 | . . . 33 . 3 . 15 2 Time Decay 551 | 25 12 137 70 40 2 154 111 . Lost Part 269 | . . . 49 . . 30 . 190 Squads Dispatched 9 | . 2 . . . 1 5 1 . Investigation 1 | . . . . . . 1 . . Extermination 2 | . . . . . . 1 1 . Reinforcement 6 | . 2 . . . 1 3 . . Assault . | . . . . . . . . . Garrison . | . . . . . . . . . Intercept . | . . . . . . . . . Searches Triggered . | . . . . . . . . . Construction Impeded 1 | . . . . . . 1 . . Haulers Reinforced . | . . . . . . . . . Active Scanning Responses . | . . . . . . . . . Cargo Convoy Interrupts . | . . . . . . . . . Stealth | -11 -10 -9 -9 -8 -7 -6 -5 -5 --------- Run | Yrd Mat Mat Min Mat Fac Fac Fac Gar Distress Signals 3 | . . 2 . . . . 1 . Communications Jammed . | . . . . . . . . . Distress Signals . | . . . . . . . . . Times Spotted 79 | . 4 10 8 2 2 21 6 26 Peak Tracking Total 7 | . 2 4 3 2 1 5 3 7 Tactical Retreats 6 | . . . . . . 6 . . Traps | -11 -10 -9 -9 -8 -7 -6 -5 -5 ------- Run | Yrd Mat Mat Min Mat Fac Fac Fac Gar Traps Triggered 7 | . . . . . 1 3 . 3 Indirectly . | . . . . . . . . . Trap Hack Attempts . | . . . . . . . . . Triggered . | . . . . . . . . . Disarmed . | . . . . . . . . . Reprogrammed . | . . . . . . . . . Reused . | . . . . . . . . . Traps Extracted . | . . . . . . . . . Installed . | . . . . . . . . . Triggered . | . . . . . . . . . Machines | -11 -10 -9 -9 -8 -7 -6 -5 -5 ---------- Run | Yrd Mat Mat Min Mat Fac Fac Fac Gar Machines Disabled 5 | . . 1 . . . . . 4 Max in Single Turn 2 | . . 1 . . . . . 2 Garrison Relay 2 | . . . . . . . . 2 Phase Generator 1 | . . . . . . . . 1 Machines Repaired . | . . . . . . . . . Machines Dismantled . | . . . . . . . . . Machines Sabotaged . | . . . . . . . . . Overloaded Fab Kills . | . . . . . . . . . Hacking | -11 -10 -9 -9 -8 -7 -6 -5 -5 --------- Run | Yrd Mat Mat Min Mat Fac Fac Fac Gar Machines Accessed 10 | . 2 1 1 . . 2 3 1 Terminals 6 | . 2 1 . . . 1 1 1 Fabricators 1 | . . . . . . . 1 . Repair Stations 1 | . . . . . . 1 . . Recycling Units . | . . . . . . . . . Scanalyzers . | . . . . . . . . . Garrison Access 1 | . . . . . . . 1 . Total Hacks 19 | . 3 3 1 . . 6 4 2 Successful 10 | . 2 1 1 . . 2 3 1 Failed 9 | . 1 2 . . . 4 1 1 Catastrophic 4 | . . 1 . . . 2 . 1 Database Lockouts . | . . . . . . . . . Manual 8 | . 3 2 . . . 2 . 1 Terminals 11 | . 3 3 . . . 2 1 2 Fabricators 2 | . . . . . . . 2 . Repair Stations 4 | . . . . . . 4 . . Recycling Units . | . . . . . . . . . Scanalyzers . | . . . . . . . . . Garrison Access 1 | . . . . . . . 1 . Terminal Hacks 6 | . 2 1 1 . . . 1 1 Prototype ID Bank 1 | . 1 . . . . . . . Open Door 1 | . . . 1 . . . . . Emergency Access Points 2 | . . . . . . . 1 1 Maintenance Status 1 | . . 1 . . . . . . Hauler Manifests 1 | . 1 . . . . . . . Fabricator Hacks 1 | . . . . . . . 1 . Build 1 | . . . . . . . 1 . Repair Station Hacks 2 | . . . . . . 2 . . Scan Component 1 | . . . . . . 1 . . Repair 1 | . . . . . . 1 . . Recycling Unit Hacks . | . . . . . . . . . Scanalyzer . | . . . . . . . . . Garrison Access Hacks 1 | . . . . . . . 1 . Unlock Access 1 | . . . . . . . 1 . Unauthorized Hacks . | . . . . . . . . . Terminals . | . . . . . . . . . Fabricators . | . . . . . . . . . Repair Stations . | . . . . . . . . . Recycling Units . | . . . . . . . . . Scanalyzers . | . . . . . . . . . Garrison Access . | . . . . . . . . . Data Cores Recovered . | . . . . . . . . . Used . | . . . . . . . . . Hacking Detections 6 | . 1 1 . . . 1 2 1 Full Trace Events 2 | . . 1 . . . 1 . . Feedback Events . | . . . . . . . . . Feedback Blocked . | . . . . . . . . . Robot Schematics Acquired . | . . . . . . . . . Robots Built 1 | . . . . . . . 1 . Authchips . | . . . . . . . . . Time 81 | . . . . . . . 81 . Total Robot Build Rating 1 | . . . . . . . 1 . Part Schematics Acquired . | . . . . . . . . . Parts Built . | . . . . . . . . . Authchips . | . . . . . . . . . Time . | . . . . . . . . . Total Part Build Rating . | . . . . . . . . . Parts Repaired . | . . . . . . . . . Time 50 | . . . . . . 50 . . Parts Recycled . | . . . . . . . . . Recycled Matter . | . . . . . . . . . Retrieved Matter . | . . . . . . . . . Retrieved Components . | . . . . . . . . . Parts Scanalyzed . | . . . . . . . . . Part Schematics Acquired . | . . . . . . . . . Parts Damaged . | . . . . . . . . . Bothacking | -11 -10 -9 -9 -8 -7 -6 -5 -5 ------------ Run | Yrd Mat Mat Min Mat Fac Fac Fac Gar Used RIF Installer . | . . . . . . . . . Robots Hacked . | . . . . . . . . . Non-combat . | . . . . . . . . . Combat . | . . . . . . . . . Robot Hacks Applied . | . . . . . . . . . Relay Couplers Released 7 | . . . . . . . . 7 Machine Destruction 7 | . . . . . . . . 7 Fabnet Peak Effective % . | . . . . . . . . . Robots Rewired . | . . . . . . . . . Allies Hacked . | . . . . . . . . . Hacks Repelled . | . . . . . . . . . Allies | -11 -10 -9 -9 -8 -7 -6 -5 -5 -------- Run | Yrd Mat Mat Min Mat Fac Fac Fac Gar Total Allies 1 | . . . . . . . 1 . Largest Group 1 | . . . . . . . 1 1 Highest-Rated Group 12 | . . . . . . . 12 12 Highest-Rated Ally 12 | . . . . . . . 12 12 Total Orders 2 | . . . . . . . 1 1 STAY 1 | . . . . . . . . 1 COLLECT 1 | . . . . . . . 1 . Ally Attacks . | . . . . . . . . . Total Damage . | . . . . . . . . . Kills . | . . . . . . . . . Allies Corrupted . | . . . . . . . . . Allies Melted 1 | . . . . . . 1 . . Intel | -11 -10 -9 -9 -8 -7 -6 -5 -5 ------- Run | Yrd Mat Mat Min Mat Fac Fac Fac Gar Active Infowar (turns) 2186 | 124 178 423 198 88 77 285 536 277 Terrain 875 | . . . . . . 62 536 277 Structural 740 | . . 154 198 88 77 223 . . Seismic 1064 | 124 178 417 198 88 59 . . . Robot Analysis Total . | . . . . . . . . . Derelict Logs Recovered 1 | . . . 1 . . . . . Drone Launches . | . . . . . . . . . Drone Recoveries . | . . . . . . . . . Exploration | -11 -10 -9 -9 -8 -7 -6 -5 -5 ------------- Run | Yrd Mat Mat Min Mat Fac Fac Fac Gar Turns Passed 2894 | 210 178 423 198 88 77 440 536 744 Spaces Moved 2720 | 96 111 171 230 246 170 567 642 487 Core 48 | 1 . . 6 . 5 28 . 8 Treads 413 | 95 111 171 36 . . . . . Legs . | . . . . . . . . . Wheels 191 | . . . . . . . . 191 Hover 878 | . . . . . . 32 558 288 Flight 1190 | . . . 188 246 165 507 84 . Fastest Speed 31 | 50 160 160 34 34 31 34 35 52 Average Speed 73 | 158 160 160 58 34 41 63 49 88 Slowest Speed 550 | 160 160 160 250 34 200 300 60 550 Overloaded Moves . | . . . . . . . . . Propulsion Burnouts . | . . . . . . . . . Robots Hopped 13 | . . . 2 4 2 5 . . Potential Cave-ins . | . . . . . . . . . Cave-ins Triggered . | . . . . . . . . . Exploration Rate (%) 27 | 6 27 21 62 31 8 21 15 56 Regions Visited 8 Branch Regions 1 Pre-discovered Areas 1 | . . . 1 . . . . . Known Exits Taken 2 | . . . . 1 . . 1 . Unknown Exits Taken 6 | 1 1 1 1 . 1 1 . . Scrap Searched 1 | . . . 1 . . . . . Spaces Dug 1 | . . . . . . 1 . . Terrain Destroyed 139 | . . . . . . 1 . 138 Melee 1 | . . . . . . 1 . . Projectile . | . . . . . . . . . AOE 138 | . . . . . . . . 138 Terrain Rammed . | . . . . . . . . . Walls Destroyed . | . . . . . . . . . Machines Disabled . | . . . . . . . . . Actions | -11 -10 -9 -9 -8 -7 -6 -5 -5 --------- Run | Yrd Mat Mat Min Mat Fac Fac Fac Gar Total 3327 | 126 112 250 261 247 171 632 823 705 Wait 252 | 3 . . 3 . . 29 126 91 Move 2686 | 95 110 170 225 237 165 556 641 487 Hop 13 | . . . 2 4 2 5 . . Pick Up 38 | 7 1 9 4 3 . 5 7 2 Fast Attach 39 | 7 . 2 1 . 1 8 14 6 Attach 23 | . . 1 4 . . 7 3 8 Detach 7 | . . . 1 . . 2 . 4 Swap 16 | 1 . 5 . . 1 1 2 6 Drop 32 | 1 1 8 1 3 . 10 7 1 Fire 142 | 12 . 55 15 . . . 9 51 Melee 45 | . . . . . . 7 14 24 Ram 10 | . . . 5 . 2 2 . 1 Kick . | . . . . . . . . . Crush . | . . . . . . . . . Escape Stasis 24 | . . . . . . . . 24 Rewire . | . . . . . . . . . Trap . | . . . . . . . . . Miscellaneous . | . . . . . . . . . Route ------- -11/Scrapyard -10/Materials -9/Materials -9/Mines -8/Materials (discovered 2 exits: *Fac x2) -7/Factory -6/Factory -5/Factory -5/Garrison (discovered 1 exit: [*Fac]) History --------- Turn | Location | Event 7 | -11/Scrapyard | Discovered new exit (range 15) 211 | -11/Scrapyard | Entered Materials 331 | -10/Materials | Build established: Mutant 386 | -10/Materials | Discovered new exit (range 3) 389 | -10/Materials | Entered another Materials area 389 | -9/Materials | Evolved 2 slots: Propulsion x1, Utility x1 801 | -9/Materials | Discovered new exit (range 8) 812 | -9/Materials | Entered Mines 886 | -9/Mines | Learned location of 1 exit from Materials 949 | -9/Mines | Lost 3 parts (1n2w) 964 | -9/Mines | Met a Derelict who couldn't figure out how to use a Trap Extractor 1000 | -9/Mines | Learned location of Storage (-9) 1006 | -9/Mines | Discovered new exit (range 11) 1010 | -9/Mines | Entered Materials 1010 | -8/Materials | Evolved 2 slots: Propulsion x1, Utility x1 1011 | -8/Materials | Identified exit to Factory 1092 | -8/Materials | Discovered exit to Factory (range 4) 1098 | -8/Materials | Entered Factory 1098 | -7/Factory | Evolved 2 slots: Propulsion x1, Utility x1 1160 | -7/Factory | Discovered new exit (range 16) 1175 | -7/Factory | Entered another Factory area 1175 | -6/Factory | Evolved 2 slots: Propulsion x1, Utility x1 1203 | -6/Factory | Lost 3 parts (2n1u) 1309 | -6/Factory | Allied Derelicts emerged from ambush trap array 1408 | -6/Factory | Lost 3 allies 1429 | -6/Factory | Lost 3 parts (1p1n1u) 1601 | -6/Factory | Core integrity fell below 50% 1609 | -6/Factory | Discovered new exit (range 15) 1615 | -6/Factory | Entered another Factory area 1615 | -5/Factory | Evolved 2 slots: Power x1, Utility x1 1801 | -5/Factory | Fabricated A-02 Transporter (x1) 2151 | -5/Factory | Identified exit to Garrison 2151 | -5/Factory | Entered Garrison 2151 | -5/Garrison | Accompanied by 1 ally 2333 | -5/Garrison | Phase Generator disabled 2395 | -5/Garrison | Garrison Relay disabled 2398 | -5/Garrison | Destroyed 9 combat bots 2408 | -5/Garrison | Discovered new exit (range 14) 2479 | -5/Garrison | Triggered checkpoint 2520 | -5/Garrison | Core integrity fell below 50% 2539 | -5/Garrison | Lost 13 parts (3p5n2u3w) 2791 | -5/Garrison | Triggered checkpoint 2791 | -5/Garrison | Triggered checkpoint 2855 | -5/Garrison | Triggered checkpoint 2856 | -5/Garrison | Garrison Relay disabled 2865 | -5/Garrison | Core integrity fell below 20% 2895 | -5/Garrison | Destroyed by Y-64 Sentinel with Wave Gun Last Messages --------------- 02855_ Beams of light sweep through the air. An alarm sounds. 02856_ Garrison Relay disabled. 02856_ Relay Coupler [Swarmer] tumbles out of relay unit. 02856_ Relay Coupler [NC] tumbles out of relay unit. 02858_ Critical hit (Burn: +37). 02858_ G-50 Soldier destroyed. 02860_ Destroyed Lgt. Angular Momentum Engine. 02864_ G-50 Soldier destroyed. 02880_ Gauss Rifle destroyed. 02880_ Penetrated by Slug. 02881_ Y-64 Sentinel springs to life. 02881_ RIF Installer disabled. 02881_ Penetrated by Slug. 02890_ Mic. Fission Core destroyed. 02890_ Destroyed Mic. Fission Core. 02890_ Imp. Grenade Launcher destroyed. 02890_ Destroyed Imp. Grenade Launcher. 02891_ Penetrated by Slug. 02892_ Arm. Huge Wheel destroyed. 02894_ Penetrated by Slug. Map ----- +----------------------------------------------------+ | ???????????????????????????????????????? | | ???????????????????????????????????????? | | ??? ???????????????????????????????????? | | ??? ???????????????????????????????????? | | ??? ???????????????????????????????????? | | ??? ???????????????????????????????????? | | ??? ???????????????????????????????????? | | ??? ???????????????????????????????????? | | ??? ???????????????????????????????????? | | ??# #??????????????????????????????????? | | ??# #??????????????????????????????????? | | ??# #??????????????????????????????????? | | ??# #??????????????????????????????????? | | ??# #??????????????????????????????????? | | ??# #??????????????????????????????????? | | ??# #??????????????????????????????????? | | ###+#######+#######????????????????????? | | ^ ???????????????????? | | ???????????????????? | | ???????????????????? | | #### ############?###?????????????????? | | ???# #????????????# ##??????????????? | | ???# #???#####????# #??????????????? | | #### #???# #???## #####??????????? | | #####%% #####! Y #??????????? | | #### @ "#??????????? | | ???# ## ## ## ##!!! #??????????? | | ???# #??# ##### #Y#####??????????? | | #### #??#######???#??# #??????????????? | | #???????????????###??????????????? | | #????????????????????????????????? | | # #####????????????????????????????????? | | # ?????????????????????????????????????? | | ??????????????????????????????????????? | | ???????????????????????????????????????? | | ???????????????????????????????????????? | | ??????????????????????????????????????? | | ?????????????????????????????????????? | | # #????????????????????????????????????? | | ? ???????????????????????????????????? | | ? ??????????????????????????????????? | | # ?###?????????????????????????????????? | | ??#????????????????????????????????????? | | ???????????????????????????????????????? | | ???????????????????????????????????????? | | ???????????????????????????????????????? | | ???????????????????????????????????????? | | ???????????????????????????????????????? | | ???????????????????????????????????????? | | ???????????????????????????????????????? | +----------------------------------------------------+ Best States ------------- Heat Dissipation 40 Energy Generation 33 Energy Capacity 715 Matter Stores 300 Matter Capacity 300 Sight Range 16 Terrain Scan Range 20 Terrain Scan Density 10 Armor Coverage 225 Evasion (%) 63 Targeting Accuracy 8 Melee Accuracy 5 Recoil Reduction 2 Item Schematics ----------------- None Robot Schematics ------------------ None Fabricated ------------ A-02 Transporter | x1 | -5/Factory | Preloaded Repaired ---------- Nothing Alien Tech Used ----------------- None Achievements -------------- None Challenges ------------ None Game ------ Seed IonScrapStatue Manual? 0 Play Time 00:28:33 Cumulative 152.5 hours Start 2025.07.12 @ 21:55:12 End 2025.07.12 @ 22:25:51 Sessions 1 Manual Loads 0 Difficulty Rogue Special Mode None Game No. 385 Rogue 385 Adventurer 0 Explorer 0 Win Type - Total 5 Types 4/0/1/0/0/0/0/0/0/0 Lore% 69 Gallery% 59 Achievement% 48 Wizard Run 0 Options --------- Layout 0 ASCII 0 Keyboard 0 Movement Numpad Keybinds 0 Fullscreen 2 Font 18/Terminus Map View 76x50 Zoom Use 0% Tactical HUD 1 Map Filters NONE Filters NONE Steam 1 RUN: 3489a465-d1e6-43ef-89f8-6d2efd751c84